bitfinex-derivatives/quotes_SOLF0:USTF0_20250321
["timestamp","ask_amount","ask_price","bid_price","bid_amount"]
[1742539506133,0.05317332,128.13,128.12,19.94755446]
[1742539506835,27.62,128.17,128.16,7.8057]
[1742539507027,27.62,128.19,128.15,12.13945446]
[1742539507223,43.325529,128.2,128.15,12.13945446]
[1742539507529,10.83138225,128.2,128.18,12.13945446]
[1742539507927,10.89022328,128.2,128.19,7.8038]
[1742539508130,10.89022328,128.2,128.19,19.94325446]
[1742539510033,10.89022328,128.2,128.19,7.8038]
[1742539510336,0.05884103,128.2,128.19,7.8038]
[1742539514141,0.05884103,128.2,128.19,19.94325446]
[1742539516237,0.05884103,128.2,128.18,19.9988723]
[1742539516442,0.05884103,128.2,128.18,12.1946723]
[1742539516739,0.05884103,128.2,128.19,7.8038]
[1742539517543,0.05884103,128.2,128.19,19.94325446]
[1742539520448,0.05884103,128.2,128.18,19.9987723]
[1742539520647,0.05884103,128.2,128.18,7.85931784]
[1742539520842,0.05884103,128.2,128.18,0.05521784]
[1742539521240,0.05884103,128.2,128.19,7.8038]
[1742539521449,0.05884103,128.2,128.18,0.05521784]
[1742539521849,0.05884103,128.2,128.18,7.85941784]
[1742539523447,7.86214103,128.2,128.18,7.85941784]
[1742539523745,0.05884103,128.2,128.19,7.8038]
[1742539524143,0.05884103,128.2,128.18,7.85931784]
[1742539524443,0.05884103,128.2,128.18,0.05521784]
[1742539525252,0.05884103,128.2,128.18,7.85941784]
[1742539526649,7.86214103,128.2,128.18,7.85941784]
[1742539526853,0.05884103,128.2,128.18,0.05521784]
[1742539527243,4.19954103,128.2,128.18,0.05521784]
[1742539527644,19.94325446,128.19,128.18,0.05521784]
[1742539528845,12.13945446,128.19,128.18,0.05521784]
[1742539529151,12.00304103,128.2,128.18,0.05521784]
[1742539530450,12.00304103,128.2,128.18,7.85961784]
[1742539531356,12.00304103,128.2,128.18,0.05521784]
[1742539531649,19.94325446,128.19,128.18,0.05521784]
[1742539536056,47.54325446,128.19,128.18,0.05521784]
[1742539537463,35.4038,128.19,128.18,0.05521784]
[1742539539670,39.73945446,128.19,128.13,12.13945446]
[1742539539968,14.23895446,128.18,128.12,293.01945446]
[1742539540264,7.806,128.16,128.13,7.8072]
[1742539540464,35.406,128.16,128.13,7.8072]
[1742539540865,35.45849356,128.16,128.13,7.8072]
[1742539541266,27.65249356,128.16,128.15,7.8063]
[1742539543269,27.65249356,128.16,128.15,19.94575446]
[1742539543472,0.05249356,128.16,128.15,19.94575446]
[1742539544677,27.6,128.21,128.15,39.73945446]
[1742539544866,27.6,128.21,128.17,12.13945446]
[1742539545068,27.6,128.21,128.19,7.8035]
[1742539545576,12.13945446,128.2,128.15,39.73945446]
[1742539545769,12.13945446,128.2,128.19,0.05089565]
[1742539545976,12.13945446,128.2,128.16,0.05249356]
[1742539546167,12.13945446,128.19,128.16,0.05249356]
[1742539546364,20.00267058,128.19,128.17,7.8049]
[1742539546775,0.05911612,128.19,128.17,7.8049]
[1742539547367,0.05911612,128.19,128.18,7.8044]
[1742539558876,0.05911612,128.19,128.17,7.8047]
[1742539559077,0.05911612,128.19,128.16,12.19194802]
[1742539559386,0.05911612,128.19,128.17,7.8048]
[1742539560382,0.05911612,128.19,128.18,7.8044]
[1742539560584,0.05911612,128.19,128.16,0.05249356]
[1742539560881,0.05911612,128.19,128.17,7.805]
[1742539561070,0.05911612,128.19,128.16,0.05249356]
[1742539561275,7.86331612,128.19,128.16,0.05249356]
[1742539561476,7.86331612,128.19,128.16,7.85789356]
[1742539562174,7.8046,128.18,128.16,7.85789356]
[1742539562374,7.8046,128.18,128.16,0.05249356]
[1742539562375,39.73945446,128.18,128.16,0.05249356]
[1742539563187,39.73945446,128.18,128.16,7.85819356]
[1742539563486,39.73945446,128.18,128.16,0.05249356]
[1742539563785,47.54415446,128.18,128.16,0.05249356]
[1742539564393,7.8051,128.17,128.16,0.05249356]
[1742539564586,39.73945446,128.18,128.16,0.05249356]
[1742539565385,35.4047,128.18,128.16,7.85809356]
[1742539566486,35.4047,128.18,128.16,0.05249356]
[1742539568276,7.8051,128.17,128.16,0.05249356]
[1742539569686,19.94455446,128.17,128.16,0.05249356]
[1742539569885,12.13945446,128.17,128.12,280.88]
[1742539570093,12.13945446,128.17,128.13,7.8071]
[1742539570795,7.8061,128.16,128.13,7.8071]
[1742539571095,7.8568069,128.16,128.13,7.8071]
[1742539573193,0.0507069,128.16,128.14,7.8067]
[1742539574891,0.0507069,128.16,128.15,7.8063]
[1742539575489,0.0507069,128.16,128.14,7.8066]
[1742539576098,7.8564069,128.16,128.14,7.8066]
[1742539578901,7.8564069,128.16,128.13,19.94655446]
[1742539579499,7.8564069,128.16,128.14,7.8068]
[1742539583395,19.99586136,128.16,128.14,7.8068]
[1742539584799,19.99586136,128.16,128.13,7.8071]
[1742539584998,19.99586136,128.16,128.11,12.13945446]
[1742539586203,19.99586136,128.16,128.14,7.8065]
[1742539591705,19.99586136,128.16,128.13,7.8072]
[1742539592006,19.99586136,128.16,128.11,12.13945446]
[1742539593406,19.99586136,128.16,128.14,7.8068]
[1742539594906,7.8063,128.15,128.13,7.8072]
[1742539596209,27.6,128.15,128.09,12.13945446]
[1742539596404,12.13945446,128.12,128.08,280.98]
[1742539596905,39.73945446,128.12,128.08,280.98]
[1742539597608,27.6,128.12,128.08,293.11945446]
[1742539598209,0.05168586,128.13,128.11,12.13945446]
[1742539598408,0.05168586,128.13,128.12,12.13945446]
[1742539599597,0.05168586,128.13,128.12,19.94755446]
[1742539600411,27.6,128.16,128.15,7.8063]
[1742539605220,35.4057,128.16,128.14,7.85828586]
[1742539606820,39.73945446,128.16,128.14,0.05168586]
[1742539607923,47.54535446,128.16,128.14,7.85848586]
[1742539610228,39.73945446,128.16,128.14,7.85848586]
[1742539611824,47.54525446,128.16,128.14,7.85848586]
[1742539617029,27.6,128.16,128.15,7.8063]
[1742539618430,7.8063,128.15,128.14,0.05168586]
[1742539619125,7.8076,128.13,128.11,7.8084]
[1742539619331,39.73945446,128.13,128.09,12.13945446]
[1742539619634,7.809,128.11,128.07,12.13945446]
[1742539619837,12.13945446,128.11,128.05,31.6216]
[1742539620031,27.6,128.1,128.07,7.8108]
[1742539620440,35.46702533,128.1,128.07,7.8108]
[1742539620740,35.46702533,128.1,128.08,7.8105]
[1742539621835,35.46702533,128.1,128.07,7.8108]
[1742539622639,35.46702533,128.1,128.08,7.8105]
[1742539624040,35.46702533,128.1,128.07,7.8108]
[1742539624242,47.60647979,128.1,128.07,7.8108]
[1742539625844,7.81,128.09,128.07,7.8108]
[1742539626241,12.13945446,128.08,128.03,293.15945446]
[1742539626445,7.8112,128.07,128.03,293.15945446]
[1742539626639,7.86137561,128.07,128.03,293.15945446]
[1742539626945,35.46137561,128.07,128.04,7.8127]
[1742539628145,27.65017561,128.07,128.04,7.8127]
[1742539629949,27.65017561,128.07,128.05,7.8122]
[1742539631742,27.65017561,128.07,128.04,7.8127]
[1742539632144,35.46127561,128.07,128.04,7.8127]
[1742539632343,12.13945446,128.06,128.03,7.8135]
[1742539632652,12.13945446,128.06,128.01,12.13945446]
[1742539632851,12.13945446,128.06,128.03,7.8135]
[1742539633147,12.13945446,128.06,128.0,39.73945446]
[1742539633546,0.05782072,128.04,128.02,7.8139]
[1742539633747,27.65782072,128.04,128.02,7.8139]
[1742539633948,27.65782072,128.04,128.0,12.13945446]
[1742539634143,27.65782072,128.04,128.01,7.8145]
[1742539634348,39.79727518,128.04,128.01,7.8145]
[1742539634844,39.79727518,128.04,128.02,7.8141]
[1742539637155,47.61037518,128.04,128.01,7.8145]
[1742539640464,7.8137,128.03,128.0,7.8151]
[1742539640955,12.13945446,128.02,128.0,7.8151]
[1742539641154,27.6,128.01,128.0,7.8151]
[1742539641362,39.73945446,128.01,127.96,12.13945446]
[1742539641750,12.13945446,128.0,127.95,12.13945446]
[1742539641956,12.19078148,128.0,127.95,12.13945446]
[1742539642250,12.19078148,128.0,127.96,7.8176]
[1742539642858,19.95565446,127.99,127.96,7.8176]
[1742539643061,12.13945446,127.97,127.92,12.13945446]
[1742539643461,0.0543361,127.96,127.92,12.13945446]
[1742539643662,27.62,127.95,127.88,287.4378]
[1742539643859,27.62,127.95,127.91,12.13945446]
[1742539644066,0.05243142,127.93,127.91,12.13945446]
[1742539644264,0.05243142,127.93,127.92,7.8203]
[1742539647268,0.05243142,127.93,127.9,12.13945446]
[1742539648467,0.05243142,127.93,127.92,7.8203]
[1742539651867,0.05243142,127.93,127.89,12.13945446]
[1742539652061,27.62,127.92,127.89,12.13945446]
[1742539652477,27.62,127.92,127.91,7.8206]
[1742539655674,27.62,127.92,127.9,7.8212]
[1742539655873,27.62,127.92,127.89,12.13945446]
[1742539656277,27.62,127.92,127.91,7.8209]
[1742539658976,27.62,127.92,127.9,7.8212]
[1742539659477,35.4403,127.92,127.89,19.96135446]
[1742539659781,39.75945446,127.92,127.85,14.31195446]
[1742539659967,7.8212,127.91,127.88,7.8224]
[1742539660170,0.05882521,127.9,127.85,14.31195446]
[1742539660378,0.05882521,127.9,127.85,12.13945446]
[1742539661278,0.05882521,127.9,127.88,7.8225]
[1742539661475,0.05882521,127.9,127.85,12.13945446]
[1742539662284,27.64,127.89,127.85,12.13945446]
[1742539662785,27.64,127.89,127.88,7.8223]
[1742539669994,35.4622,127.89,127.87,7.8231]
[1742539670793,27.64,127.89,127.87,7.8231]
[1742539671296,27.64,127.89,127.88,7.8228]
[1742539676596,0.05882521,127.9,127.89,7.8221]
[1742539712116,0.05882521,127.9,127.88,7.8225]
[1742539712316,0.05882521,127.9,127.86,12.13945446]
[1742539712521,0.05882521,127.9,127.89,7.8221]
[1742539722836,14.20365446,127.95,127.93,7.8195]
[1742539723138,27.8,127.94,127.9,12.13945446]
[1742539723324,27.8,127.94,127.89,12.13945446]
[1742539723528,27.8,127.94,127.92,7.82]
[1742539723833,27.8,127.94,127.9,12.13945446]
[1742539724032,27.85747081,127.94,127.93,7.8197]
[1742539725231,27.85747081,127.94,127.92,7.8731603]
[1742539725624,39.99692527,127.94,127.92,0.0531603]
[1742539726538,47.81632527,127.94,127.92,0.0531603]
[1742539726740,12.13945446,127.93,127.92,0.0531603]
[1742539727237,19.95915446,127.93,127.88,39.93945446]
[1742539727625,19.95915446,127.93,127.9,7.8215]
[1742539729538,7.8204,127.92,127.9,7.8215]
[1742539729735,12.13945446,127.93,127.9,7.8215]
[1742539730135,19.95945446,127.93,127.9,7.8215]
[1742539730838,19.95945446,127.93,127.88,12.13945446]
[1742539730839,19.95945446,127.93,127.91,7.8207]
[1742539732237,12.13945446,127.93,127.92,7.8203]
[1742539732433,39.95945446,127.93,127.92,7.8203]
[1742539734344,39.95945446,127.93,127.91,7.8206]
[1742539735440,47.77915446,127.93,127.91,7.8206]
[1742539737448,47.77915446,127.93,127.9,7.8212]
[1742539738153,47.77915446,127.93,127.91,7.8209]
[1742539738950,12.13945446,127.93,127.91,7.8209]
[1742539739150,27.82,127.92,127.91,7.8209]
[1742539740254,27.85747081,127.94,127.88,12.13945446]
[1742539740451,27.8,127.94,127.88,12.13945446]
[1742539740652,0.05385409,127.92,127.88,12.13945446]
[1742539740950,0.05385409,127.92,127.91,7.8209]
[1742539741956,43.325529,127.99,127.91,27.78]
[1742539742151,43.325529,127.99,127.98,12.13945446]
[1742539742549,43.325529,127.99,127.98,19.95605446]
[1742539742747,43.325529,128.0,127.98,12.13945446]
[1742539743146,43.38508132,128.0,127.99,7.816]
[1742539745955,0.05955232,128.0,127.99,7.816]
[1742539746955,0.05955232,128.0,127.98,20.00569878]
[1742539747458,0.05955232,128.0,127.98,0.04984432]
[1742539747654,12.13945446,127.99,127.98,0.04984432]
[1742539748153,12.13945446,127.99,127.94,7.8188]
[1742539748349,12.13945446,127.97,127.94,7.8188]
[1742539748858,19.95715446,127.97,127.93,19.95885446]
[1742539749153,12.13945446,127.97,127.93,7.8194]
[1742539749357,20.00719246,127.96,127.92,7.8201]
[1742539749559,39.91945446,127.95,127.92,7.8201]
[1742539750452,39.91945446,127.95,127.91,289.2408]
[1742539750657,39.91945446,127.95,127.91,7.8208]
[1742539751156,7.8192,127.94,127.91,7.8208]
[1742539751350,39.91945446,127.95,127.9,19.96075446]
[1742539751853,7.8199,127.93,127.9,19.96075446]
[1742539752052,27.82,127.92,127.9,19.96075446]
[1742539752452,0.05645688,127.94,127.9,12.13945446]
[1742539752660,28.66,128.0,127.92,12.13945446]
[1742539752854,28.66,128.0,127.97,7.8171]
[1742539753053,28.66,128.0,127.95,12.13945446]
[1742539753255,40.79945446,128.0,127.95,12.13945446]
[1742539753555,7.8166,127.99,127.94,12.13945446]
[1742539753757,19.95605446,127.99,127.94,12.13945446]
[1742539754056,0.05574613,127.98,127.96,7.8175]
[1742539754358,0.05574613,127.98,127.95,0.05191141]
[1742539754655,0.05574613,127.98,127.97,7.8173]
[1742539755459,0.05574613,127.98,127.97,19.95675446]
[1742539756052,0.05574613,127.98,127.97,48.61675446]
[1742539759062,28.64,128.02,128.01,7.8148]
[1742539760163,28.64,128.02,128.0,7.87303075]
[1742539761265,40.77945446,128.02,128.0,0.05793075]
[1742539761563,40.77945446,128.02,127.97,12.13945446]
[1742539761755,7.8163,127.99,127.96,7.8175]
[1742539761962,36.4563,127.99,127.96,7.8175]
[1742539762665,28.64,127.99,127.97,7.8172]
[1742539762961,28.69816925,127.99,127.97,7.8172]
[1742539763162,28.69816925,127.99,127.96,0.05509742]
[1742539763760,28.69816925,127.99,127.97,12.13945446]
[1742539764060,28.69816925,127.99,127.98,7.8166]
[1742539764657,28.69816925,127.99,127.97,19.95645446]
[1742539764859,28.69816925,127.99,127.97,12.13945446]
[1742539765260,36.51446925,127.99,127.97,12.13945446]
[1742539765459,28.69816925,127.99,127.97,12.13945446]
[1742539765657,28.63816925,127.99,127.97,12.13945446]
[1742539765861,28.63816925,127.99,127.97,19.95645446]
[1742539766071,28.63816925,127.99,127.97,12.13945446]
[1742539766366,36.45426925,127.99,127.97,12.13945446]
[1742539767466,36.45426925,127.99,127.97,19.95665446]
[1742539769059,28.63816925,127.99,127.97,19.95665446]
[1742539769960,28.63816925,127.99,127.98,7.8166]
[1742539770467,36.45446925,127.99,127.97,7.8172]
[1742539770967,28.63816925,127.99,127.97,7.8172]
[1742539772866,28.63816925,127.99,127.96,0.05509742]
[1742539773264,0.05816925,127.99,127.98,7.8166]
[1742539773971,0.05816925,127.99,127.98,19.95605446]
[1742539775672,0.05816925,127.99,127.98,12.13945446]
[1742539776169,0.05816925,127.99,127.98,19.95605446]
[1742539782275,4.0825,128.03,128.02,7.8142]
[1742539782469,12.13945446,128.06,128.02,7.8142]
[1742539782470,28.4,128.04,128.02,7.8142]
[1742539782673,28.4,128.04,128.0,12.13945446]
[1742539783370,28.4,128.04,128.03,7.8136]
[1742539783570,28.4,128.04,128.01,0.05122437]
[1742539784972,2.12016025,128.05,128.01,0.05122437]
[1742539785168,2.12016025,128.05,128.01,7.86582437]
[1742539785169,36.2131,128.04,128.01,7.86582437]
[1742539785975,7.8131,128.04,128.01,7.86582437]
[1742539786177,36.1931,128.04,128.01,7.86582437]
[1742539787881,28.38,128.04,128.01,0.05122437]
[1742539788274,7.8139,128.03,128.01,0.05122437]
[1742539790275,7.8139,128.03,128.01,7.86602437]
[1742539790482,36.1933,128.04,128.01,7.86602437]
[1742539791084,7.8136,128.03,128.01,7.86602437]
[1742539791276,7.8136,128.03,128.01,0.05122437]
[1742539791577,28.38,128.04,128.01,0.05122437]
[1742539791778,7.8139,128.03,128.01,0.05122437]
[1742539793293,7.8139,128.03,128.01,7.86592437]
[1742539794289,7.8142,128.02,128.01,0.05122437]
[1742539795998,7.8139,128.03,128.01,0.05122437]
[1742539798291,7.8142,128.02,128.01,0.05122437]
[1742539800996,7.8159,128.0,127.98,12.13945446]
[1742539801294,28.26,128.01,127.96,19.95705446]
[1742539801486,7.8173,127.97,127.95,281.28]
[1742539801996,36.1173,127.97,127.94,12.13945446]
[1742539802201,36.17125166,127.97,127.95,0.05038328]
[1742539803599,28.35395166,127.97,127.95,7.86878328]
[1742539803794,0.05395166,127.97,127.95,0.05038328]
[1742539804003,0.05395166,127.97,127.96,12.13945446]
[1742539804298,28.5,128.03,127.96,12.13945446]
[1742539804501,28.5,128.03,128.0,12.13945446]
[1742539805101,39.33138225,128.03,128.01,7.8147]
[1742539805394,39.33138225,128.03,128.01,7.8728357]
[1742539805593,39.38821344,128.03,128.01,7.8728357]
[1742539805995,47.20181344,128.03,128.01,0.0581357]
[1742539807296,47.20181344,128.03,128.01,7.8729357]
[1742539807297,39.38821344,128.03,128.01,7.8729357]
[1742539807503,39.38821344,128.03,128.01,0.0581357]
[1742539807901,39.38821344,128.03,128.01,7.8723357]
[1742539808107,39.38821344,128.03,128.01,0.0581357]
[1742539808307,28.55683119,128.03,128.01,0.0581357]
[1742539808697,28.55683119,128.03,128.02,7.8142]
[1742539809096,0.05683119,128.03,128.02,19.95365446]
[1742539810108,0.05683119,128.03,128.01,0.0581357]
[1742539810504,7.87083119,128.03,128.01,0.0581357]
[1742539810695,0.05683119,128.03,128.01,0.0581357]
[1742539811403,0.05683119,128.03,128.01,7.8724357]
[1742539811809,0.05683119,128.03,128.01,0.0581357]
[1742539812106,0.05683119,128.03,128.01,7.8726357]
[1742539812502,0.05683119,128.03,128.01,0.0581357]
[1742539813498,0.05683119,128.03,128.01,7.8729357]
[1742539814310,7.87053119,128.03,128.01,7.8729357]
[1742539815206,0.05683119,128.03,128.01,7.8729357]
[1742539815394,0.05683119,128.03,128.02,7.8142]
[1742539816704,0.05683119,128.03,128.01,7.8726357]
[1742539817403,0.05683119,128.03,128.01,0.0581357]
[1742539818507,0.05683119,128.03,128.02,7.8142]
[1742539819006,0.05683119,128.03,128.01,0.0581357]
[1742539819201,7.87053119,128.03,128.01,7.8726357]
[1742539819600,0.05683119,128.03,128.01,7.8726357]
[1742539819806,0.05683119,128.03,128.02,7.8142]
[1742539820202,0.05683119,128.03,128.01,7.8726357]
[1742539820507,0.05683119,128.03,128.01,0.0581357]
[1742539821201,7.87043119,128.03,128.01,0.0581357]
[1742539823106,7.87043119,128.03,128.01,7.8727357]
[1742539823604,0.05683119,128.03,128.02,7.8142]
[1742539829411,7.87043119,128.03,128.01,0.0581357]
[1742539829610,0.05683119,128.03,128.01,0.0581357]
[1742539830112,7.87103119,128.03,128.01,0.0581357]
[1742539830615,7.8142,128.02,128.01,0.0581357]
[1742539830913,0.05683119,128.03,128.01,0.0581357]
[1742539831308,7.8142,128.02,128.01,0.0581357]
[1742539832403,36.1342,128.02,128.01,0.0581357]
[1742539834717,48.27365446,128.02,128.01,0.0581357]
[1742539835018,7.8159,128.0,127.97,12.13945446]
[1742539835425,7.8159,128.0,127.98,7.8165]
[1742539836019,7.87563873,128.0,127.98,0.05548053]
[1742539836722,7.816,127.99,127.98,0.05548053]
[1742539838013,36.116,127.99,127.98,0.05548053]
[1742539842416,48.25545446,127.99,127.98,0.05548053]
[1742539848425,40.43945446,127.99,127.91,19.95985446]
[1742539848617,12.13945446,127.96,127.91,7.8204]
[1742539848822,28.22,127.95,127.91,7.8204]
[1742539849324,7.8195,127.94,127.91,7.8204]
[1742539849526,0.05245547,127.94,127.91,7.8204]
[1742539849731,12.19190993,127.94,127.9,289.1412]
[1742539850227,7.82,127.93,127.9,281.32]
[1742539850430,7.82,127.93,127.91,7.8207]
[1742539850930,7.82,127.93,127.9,289.1412]
[1742539851524,7.87185547,127.94,127.9,293.45945446]
[1742539851725,7.87185547,127.94,127.91,7.8209]
[1742539851929,7.87185547,127.94,127.9,293.45945446]
[1742539852227,7.87185547,127.94,127.91,7.8209]
[1742539852430,7.87185547,127.94,127.9,293.45945446]
[1742539853028,7.87185547,127.94,127.9,301.28035446]
[1742539853631,7.8199,127.93,127.9,301.28035446]
[1742539853934,28.18,127.92,127.91,7.8209]
[1742539857034,28.18,127.92,127.9,7.8212]
[1742539857232,36.0003,127.92,127.89,12.13945446]
[1742539857435,28.18,127.92,127.9,7.8211]
[1742539857936,28.18,127.92,127.91,7.8209]
[1742539858128,28.18,127.92,127.89,12.13945446]
[1742539858823,28.18,127.92,127.91,7.8209]
[1742539860438,48.19130993,127.94,127.92,7.8202]
[1742539860633,36.05185547,127.94,127.92,7.8202]
[1742539860833,28.23245547,127.94,127.92,7.8202]
[1742539861328,28.23245547,127.94,127.9,12.13945446]
[1742539862635,28.23245547,127.94,127.93,7.8197]
[1742539863236,28.23245547,127.94,127.92,7.82]
[1742539863626,28.23245547,127.94,127.9,12.13945446]
[1742539865335,28.23245547,127.94,127.93,7.8197]
[1742539865538,0.05245547,127.94,127.93,19.95915446]
[1742539867334,0.05245547,127.94,127.93,12.13945446]
[1742539867533,0.05245547,127.94,127.91,12.13945446]
[1742539868929,0.05245547,127.94,127.93,7.8197]
[1742539877149,0.05245547,127.94,127.92,19.95965446]
[1742539877347,0.05245547,127.94,127.92,7.8202]
[1742539877851,7.87185547,127.94,127.91,7.8207]
[1742539878343,7.87185547,127.94,127.92,7.8203]
[1742539880252,0.05245547,127.94,127.92,7.8203]
[1742539880451,0.05245547,127.94,127.9,12.13945446]
[1742539881251,0.05245547,127.94,127.92,12.13945446]
[1742539881453,0.05245547,127.94,127.93,7.8197]
[1742539892767,0.05245547,127.94,127.93,19.95915446]
[1742539904479,0.05245547,127.94,127.93,7.8197]
[1742539904866,0.05245547,127.94,127.91,40.35945446]
[1742539904867,0.05245547,127.94,127.92,7.8199]
[1742539905068,28.15245547,127.94,127.92,7.8199]
[1742539905768,35.97185547,127.94,127.91,7.8206]
[1742539905968,35.97185547,127.94,127.91,19.96005446]
[1742539907779,28.15245547,127.94,127.92,7.8202]
[1742539909379,28.15245547,127.94,127.91,12.13945446]
[1742539909878,28.15245547,127.94,127.93,7.8197]
[1742539910182,0.05245547,127.94,127.93,7.8197]
[1742539910568,0.05245547,127.94,127.93,19.95915446]
[1742539923789,0.05245547,127.94,127.93,7.8197]
[1742539924185,0.05245547,127.94,127.93,19.95915446]
[1742539935493,0.05245547,127.94,127.93,47.93915446]
[1742539936992,0.05245547,127.94,127.93,19.95915446]
[1742539938098,16.40675446,127.99,127.95,7.8183]
[1742539938307,27.96,127.97,127.95,7.8183]
[1742539939392,28.01314746,127.97,127.95,7.87509318]
[1742539940704,40.15260192,127.97,127.95,0.05679318]
[1742539941493,7.8179,127.96,127.95,0.05679318]
[1742539943698,47.97020192,127.97,127.95,0.05679318]
[1742539943894,47.97020192,127.97,127.95,7.87509318]
[1742539945401,47.97020192,127.97,127.95,0.05679318]
[1742539946802,7.8179,127.96,127.95,0.05679318]
[1742539949000,47.97020192,127.97,127.95,0.05679318]
[1742539950203,47.97020192,127.97,127.95,7.87519318]
[1742539950604,40.15260192,127.97,127.95,7.87519318]
[1742539951004,40.15260192,127.97,127.95,0.05679318]
[1742539951998,40.15260192,127.97,127.9,40.11945446]
[1742539952305,2.074,127.96,127.9,40.11945446]
[1742539952504,7.8195,127.94,127.91,7.8204]
[1742539952702,35.8395,127.94,127.91,7.8204]
[1742539952898,35.8395,127.94,127.92,7.82]
[1742539953102,28.07025352,127.94,127.9,40.11945446]
[1742539953907,35.88945352,127.94,127.9,40.11945446]
[1742539954507,35.88945352,127.94,127.91,7.8206]
[1742539954704,35.88945352,127.94,127.9,40.11945446]
[1742539955101,35.88945352,127.94,127.91,7.8204]
[1742539955609,35.88945352,127.94,127.92,7.8203]
[1742539955807,28.07025352,127.94,127.92,7.8203]
[1742539956108,28.07025352,127.94,127.91,7.8204]
[1742539956406,35.88955352,127.94,127.91,7.8204]
[1742539956608,35.88955352,127.94,127.9,40.11945446]
[1742539956803,28.07025352,127.94,127.92,7.8203]
[1742539957600,28.07025352,127.94,127.9,12.13945446]
[1742539957800,28.07025352,127.94,127.92,12.13945446]
[1742539958002,0.05025352,127.94,127.92,12.13945446]
[1742539958205,0.05025352,127.94,127.93,7.8197]
[1742539963610,27.96,127.98,127.97,7.8169]
[1742539965410,27.96,127.98,127.96,7.87464306]
[1742539965714,37.92748957,127.99,127.96,7.87464306]
[1742539966123,30.11138957,127.99,127.97,7.8172]
[1742539966809,37.92748957,127.99,127.97,7.8172]
[1742539967514,30.11138957,127.99,127.97,7.8172]
[1742539968711,30.11138957,127.99,127.96,0.05714306]
[1742539968910,0.05618957,127.99,127.97,12.13945446]
[1742539969106,0.05618957,127.99,127.98,7.8166]
[1742539969910,10.83138225,128.02,128.01,7.8148]
[1742539971510,10.83138225,128.02,128.0,12.19010565]
[1742539971710,0.0557076,128.03,128.0,7.86595119]
[1742539972213,0.0557076,128.03,128.01,7.8148]
[1742539972418,0.0557076,128.03,128.0,0.05065119]
[1742539972814,0.0557076,128.03,128.0,7.86605119]
[1742539973011,0.0557076,128.03,128.0,0.05065119]
[1742539973210,0.0557076,128.03,128.01,12.13945446]
[1742539973508,0.0557076,128.03,128.02,7.8142]
[1742539973701,0.0557076,128.03,128.01,12.13945446]
[1742539975113,0.0557076,128.03,128.0,28.07065119]
[1742539975309,0.0557076,128.03,128.0,0.05065119]
[1742539975708,7.8697076,128.03,128.0,0.05065119]
[1742539976315,7.8697076,128.03,128.0,7.86595119]
[1742539977917,0.0557076,128.03,128.01,12.13945446]
[1742539979016,0.0557076,128.03,128.02,7.8142]
[1742539979609,35.8109,128.08,128.05,7.8123]
[1742539979807,35.8109,128.08,128.04,12.13945446]
[1742539980911,0.05397759,128.07,128.05,7.86804944]
[1742539981319,0.05397759,128.07,128.05,0.05594944]
[1742539981513,0.05397759,128.07,128.05,7.86824944]
[1742539982518,7.86537759,128.07,128.05,0.05594944]
[1742539984617,0.05397759,128.07,128.05,7.86824944]
[1742539985020,0.05397759,128.07,128.06,19.95125446]
[1742539987424,30.0697,128.12,128.09,7.8094]
[1742539988324,37.8778,128.12,128.08,19.94975446]
[1742539988530,37.93573526,128.12,128.09,0.0523866]
[1742539988822,37.93573526,128.12,128.09,7.8622866]
[1742539989221,9.89573526,128.12,128.09,7.8622866]
[1742539989515,37.91573526,128.12,128.09,7.8622866]
[1742539990425,37.91573526,128.12,128.09,0.0523866]
[1742539990925,7.8089,128.11,128.09,0.0523866]
[1742539991130,12.13945446,128.11,128.09,0.0523866]
[1742539991614,12.13945446,128.11,128.06,12.13945446]
[1742539992424,12.13945446,128.11,128.06,19.95115446]
[1742539992823,12.13945446,128.11,128.07,0.05850739]
[1742539993422,7.8099,128.09,128.07,0.05850739]
[1742539993623,35.8299,128.09,128.07,0.05850739]
[1742539993825,35.88493275,128.09,128.07,0.05850739]
[1742539995325,28.07503275,128.09,128.07,7.86960739]
[1742539995926,28.07503275,128.09,128.08,19.94995446]
[1742539996128,0.05503275,128.09,128.08,12.13945446]
[1742539997121,0.05503275,128.09,128.08,19.94995446]
[1742539998930,12.13945446,128.15,128.11,7.8084]
[1742539999228,32.1771,128.14,128.1,12.13945446]
[1742539999428,39.9843,128.14,128.1,12.13945446]
[1742539999733,32.1771,128.14,128.1,12.13945446]
[1742540000129,0.05438986,128.13,128.11,0.05138987]